fUST/lending_fUST_20250908
["ID","MTS","AMOUNT","RATE_DAILY","PERIOD"]
[384205907,1757292639573,-480.0,0.00013698,2]
[384205909,1757292639582,-480.0,0.00013698,2]
[384205911,1757292639592,-480.0,0.00013698,2]
[384205913,1757292639602,-480.0,0.00013698,2]
[384205915,1757292639612,-480.0,0.00013698,2]
[384205917,1757292639622,-480.0,0.00013698,2]
[384205919,1757292639631,-480.0,0.00013698,2]
[384205921,1757292639641,-480.0,0.00013698,2]
[384205923,1757292639651,-480.0,0.00013698,2]
[384205925,1757292639661,-480.0,0.00013698,2]
[384205927,1757292639670,-481.49191245,0.00013698,2]
[384205929,1757292639680,-480.0,0.00013698,2]
[384205931,1757292639691,-480.0,0.00013698,2]
[384205933,1757292639701,-480.0,0.00013698,2]
[384205935,1757292639711,-480.0,0.00013698,2]
[384205937,1757292639720,-480.0,0.00013698,2]
[384205939,1757292639730,-480.0,0.00013698,2]
[384205941,1757292639739,-481.58661557,0.00013698,2]
[384205943,1757292639749,-480.0,0.00013698,2]
[384205945,1757292639759,-480.0,0.00013698,2]
[384205947,1757292639769,-480.0,0.00013698,2]
[384205949,1757292639778,-480.0,0.00013698,2]
[384205951,1757292639788,-480.0,0.00013698,2]
[384205953,1757292639797,-480.0,0.00013698,2]
[384205955,1757292639807,-522.91,0.00013698,2]
[384205957,1757292639816,-480.0,0.00013698,2]
[384205959,1757292639826,-480.0,0.00013698,2]
[384205960,1757292639835,-425.6348085,0.00013698,2]
[384205962,1757292639845,-480.0,0.00013698,2]
[384205964,1757292639854,-480.0,0.00013698,2]
[384205966,1757292639864,-480.0,0.00013698,2]
[384205968,1757292639874,-593.53,0.00013698,2]
[384205970,1757292639883,-480.0,0.00013698,2]
[384205972,1757292639894,-480.0,0.00013698,2]
[384205974,1757292639903,-480.0,0.00013698,2]
[384205976,1757292639913,-480.0,0.00013698,2]
[384205978,1757292639922,-480.0,0.00013698,2]
[384205980,1757292639932,-731.41,0.00013698,2]
[384205982,1757292639942,-480.0,0.00013698,2]
[384205985,1757292639951,-480.0,0.00013698,2]
[384205987,1757292639961,-480.0,0.00013698,2]
[384205989,1757292639971,-480.0,0.00013698,2]
[384205991,1757292639980,-480.0,0.00013698,2]
[384205993,1757292639990,-480.0,0.00013698,2]
[384205995,1757292639999,-480.0,0.00013698,2]
[384205997,1757292640009,-480.0,0.00013698,2]
[384205999,1757292640018,-480.0,0.00013698,2]
[384206001,1757292640028,-480.0,0.00013698,2]
[384206003,1757292640037,-565.68486284,0.00013698,2]
[384206005,1757292640046,-480.0,0.00013698,2]
[384206007,1757292640057,-1000.0,0.00013698,2]
[384206009,1757292640071,-487.5170927,0.00013698,2]
[384206011,1757292640080,-480.0,0.00013698,2]
[384206013,1757292640089,-480.0,0.00013698,2]
[384206015,1757292640099,-480.0,0.00013698,2]
[384206017,1757292640110,-607.13,0.00013698,2]
[384206019,1757292640119,-480.0,0.00013698,2]
[384206021,1757292640128,-289.97,0.00013698,2]
[384206023,1757292640139,-480.0,0.00013698,2]
[384206025,1757292640148,-480.0,0.00013698,2]
[384206027,1757292640158,-480.0,0.00013698,2]
[384206029,1757292640167,-151.0,0.00013698,2]
[384206044,1757292640300,-170.808433,0.00013698,2]
[384206047,1757292640320,-480.0,0.00013698,2]
[384206049,1757292640332,-480.0,0.00013698,2]
[384206051,1757292640342,-480.0,0.00013698,2]
[384206053,1757292640352,-79.92365356,0.00013698,2]
[384206075,1757292640558,-429.25634644,0.00013698,2]
[384206077,1757292640567,-503.29,0.00013698,2]
[384206079,1757292640577,-480.0,0.00013698,2]
[384206081,1757292640586,-480.0,0.00013698,2]
[384206083,1757292640596,-480.0,0.00013698,2]
[384206085,1757292640605,-480.0,0.00013698,2]
[384206087,1757292640615,-480.0,0.00013698,2]
[384206089,1757292640625,-480.0,0.00013698,2]
[384206091,1757292640634,-480.0,0.00013698,2]
[384206092,1757292640643,-480.0,0.00013698,2]
[384206095,1757292640653,-480.0,0.00013698,2]
[384206096,1757292640663,-480.0,0.00013698,2]
[384206098,1757292640672,-480.0,0.00013698,2]
[384206100,1757292640681,-1235.49,0.00013698,2]
[384206102,1757292640691,-480.0,0.00013698,2]
[384206104,1757292640701,-151.0,0.00013698,2]
[384206106,1757292640710,-151.0,0.00013698,2]
[384206108,1757292640719,-151.0,0.00013698,2]
[384206110,1757292640729,-151.0,0.00013698,2]
[384206112,1757292640738,-206.976614,0.00013698,2]
[384206114,1757292640747,-480.0,0.00013698,2]
[384206116,1757292640757,-480.0,0.00013698,2]
[384206118,1757292640766,-480.0,0.00013698,2]
[384206120,1757292640776,-480.0,0.00013698,2]
[384206122,1757292640785,-274.08408607,0.00013698,2]
[384206124,1757292640794,-480.0,0.00013698,2]
[384206126,1757292640804,-723.93,0.00013698,2]
[384206128,1757292640813,-480.0,0.00013698,2]
[384206130,1757292640823,-480.0,0.00013698,2]
[384206131,1757292640831,-480.0,0.00013698,2]
[384206132,1757292640841,-480.0,0.00013698,2]
[384206133,1757292640851,-480.0,0.00013698,2]
[384206134,1757292640860,-480.0,0.00013698,2]
[384206135,1757292640870,-480.0,0.00013698,2]
[384206136,1757292640879,-721.7,0.00013698,2]
[384206137,1757292640890,-480.0,0.00013698,2]
[384206138,1757292640899,-480.0,0.00013698,2]
[384206139,1757292640909,-480.0,0.00013698,2]
[384206140,1757292640919,-157.0,0.00013698,2]
[384206141,1757292640928,-157.0,0.00013698,2]
[384206142,1757292640939,-302.0,0.00013698,2]
[384206143,1757292640948,-492.49,0.00013698,2]
[384206144,1757292640958,-541.16,0.00013698,2]
[384206145,1757292640968,-551.5,0.00013698,2]
[384206146,1757292640977,-611.76,0.00013698,2]
[384206147,1757292640987,-480.0,0.00013698,2]
[384206148,1757292640996,-480.0,0.00013698,2]
[384206149,1757292641005,-480.0,0.00013698,2]
[384206150,1757292641015,-480.0,0.00013698,2]
[384206151,1757292641024,-318.82,0.00013698,2]
[384206152,1757292641034,-480.0,0.00013698,2]
[384206153,1757292641043,-480.0,0.00013698,2]
[384206154,1757292641052,-480.0,0.00013698,2]
[384206155,1757292641066,-151.0,0.00013698,2]
[384206156,1757292641076,-480.0,0.00013698,2]
[384206157,1757292641085,-480.0,0.00013698,2]
[384206158,1757292641094,-480.0,0.00013698,2]
[384206159,1757292641104,-480.0,0.00013698,2]
[384206160,1757292641114,-480.0,0.00013698,2]
[384206161,1757292641123,-480.0,0.00013698,2]
[384206162,1757292641134,-480.0,0.00013698,2]
[384206163,1757292641143,-480.0,0.00013698,2]
[384206165,1757292641152,-480.0,0.00013698,2]
[384206167,1757292641162,-480.0,0.00013698,2]
[384206169,1757292641171,-502.17,0.00013698,2]
[384206171,1757292641182,-480.0,0.00013698,2]
[384206173,1757292641194,-480.0,0.00013698,2]
[384206175,1757292641203,-480.0,0.00013698,2]
[384206177,1757292641213,-157.0,0.00013698,2]
[384206179,1757292641224,-480.0,0.00013698,2]
[384206181,1757292641233,-557.04,0.00013698,2]
[384206183,1757292641242,-157.0,0.00013698,2]
[384206185,1757292641251,-480.0,0.00013698,2]
[384206187,1757292641261,-1075.14,0.00013698,2]
[384206189,1757292641271,-480.0,0.00013698,2]
[384206191,1757292641280,-480.0,0.00013698,2]
[384206193,1757292641293,-480.0,0.00013698,2]
[384206195,1757292641308,-480.0,0.00013698,2]
[384206197,1757292641320,-480.0,0.00013698,2]
[384206199,1757292641329,-539.94,0.00013698,2]
[384206201,1757292641339,-480.0,0.00013698,2]
[384206203,1757292641348,-480.0,0.00013698,2]
[384206205,1757292641357,-480.0,0.00013698,2]
[384206207,1757292641366,-480.0,0.00013698,2]
[384206209,1757292641377,-586.76,0.00013698,2]
[384206211,1757292641386,-1401.23,0.00013698,2]
[384206213,1757292641395,-523.02,0.00013698,2]
[384206215,1757292641406,-480.0,0.00013698,2]
[384206217,1757292641415,-2213.64,0.00013698,2]
[384206219,1757292641426,-480.0,0.00013698,2]
[384206221,1757292641435,-480.0,0.00013698,2]
[384206223,1757292641444,-480.0,0.00013698,2]
[384206225,1757292641454,-480.0,0.00013698,2]
[384206227,1757292641463,-480.0,0.00013698,2]
[384206229,1757292641473,-480.0,0.00013698,2]
[384206231,1757292641483,-480.0,0.00013698,2]
[384206233,1757292641492,-480.0,0.00013698,2]
[384206235,1757292641502,-480.0,0.00013698,2]
[384206237,1757292641511,-480.0,0.00013698,2]
[384206239,1757292641520,-480.0,0.00013698,2]
[384206241,1757292641530,-480.0,0.00013698,2]
[384206243,1757292641540,-482.1792326,0.00013698,2]
[384206245,1757292641549,-480.0,0.00013698,2]
[384206247,1757292641559,-167.17,0.00013698,2]
[384206249,1757292641568,-770.55,0.00013698,2]
[384206251,1757292641577,-480.0,0.00013698,2]
[384206253,1757292641586,-922.07425107,0.00013698,2]
[384206256,1757292641603,-2631.00574893,0.00013698,2]
[384206258,1757292641613,-480.0,0.00013698,2]
[384206260,1757292641623,-480.0,0.00013698,2]
[384206262,1757292641632,-480.0,0.00013698,2]
[384206264,1757292641641,-851.21,0.00013698,2]
[384206266,1757292641651,-356.54,0.00013698,2]
[384206268,1757292641660,-480.0,0.00013698,2]
[384206270,1757292641669,-480.0,0.00013698,2]
[384206272,1757292641680,-480.0,0.00013698,2]
[384206274,1757292641690,-480.0,0.00013698,2]
[384206276,1757292641699,-480.0,0.00013698,2]
[384206278,1757292641708,-1037.75,0.00013698,2]
[384206280,1757292641718,-480.0,0.00013698,2]
[384206282,1757292641727,-480.0,0.00013698,2]
[384206284,1757292641736,-6930.92,0.00013698,2]
[384206286,1757292641746,-157.0,0.00013698,2]
[384206288,1757292641755,-480.0,0.00013698,2]
[384206290,1757292641765,-480.0,0.00013698,2]
[384206292,1757292641774,-198.0,0.00013698,2]
[384206294,1757292641784,-883.0,0.00013698,2]
[384206296,1757292641793,-500.0,0.00013698,2]
[384206298,1757292641802,-480.0,0.00013698,2]
[384206300,1757292641812,-896.17,0.00013698,2]
[384206301,1757292641821,-480.0,0.00013698,2]
[384206303,1757292641830,-480.0,0.00013698,2]
[384206305,1757292641839,-480.0,0.00013698,2]
[384206307,1757292641848,-616.61,0.00013698,2]
[384206309,1757292641858,-480.0,0.00013698,2]
[384206311,1757292641867,-480.0,0.00013698,2]
[384206313,1757292641876,-480.0,0.00013698,2]
[384206315,1757292641885,-480.0,0.00013698,2]
[384206317,1757292641895,-614.04,0.00013698,2]
[384206319,1757292641905,-1536.46,0.00013698,2]
[384206321,1757292641914,-480.0,0.00013698,2]
[384206323,1757292641923,-380.0,0.00013698,2]
[384206325,1757292641932,-330.93530943,0.00013698,2]
[384206327,1757292641941,-790.43,0.00013698,2]
[384206329,1757292641951,-480.0,0.00013698,2]
[384206331,1757292641959,-4393.05,0.00013698,2]
[384206333,1757292641969,-685.19,0.00013698,2]
[384206335,1757292641978,-480.0,0.00013698,2]
[384206337,1757292641987,-480.0,0.00013698,2]
[384206339,1757292641997,-480.0,0.00013698,2]
[384206341,1757292642007,-480.0,0.00013698,2]
[384206343,1757292642017,-480.0,0.00013698,2]
[384206345,1757292642026,-1225.74,0.00013698,2]
[384206347,1757292642036,-480.0,0.00013698,2]
[384206349,1757292642046,-830.24,0.00013698,2]
[384206351,1757292642058,-480.0,0.00013698,2]
[384206353,1757292642070,-2017.2,0.00013698,2]
[384206355,1757292642079,-2046.13,0.00013698,2]
[384206357,1757292642089,-480.0,0.00013698,2]
[384206359,1757292642099,-480.0,0.00013698,2]
[384206361,1757292642108,-480.0,0.00013698,2]
[384206363,1757292642118,-729.57,0.00013698,2]
[384206365,1757292642127,-586.71,0.00013698,2]
[384206367,1757292642138,-311.64,0.00013698,2]
[384206369,1757292642147,-480.0,0.00013698,2]
[384206371,1757292642158,-480.0,0.00013698,2]
[384206373,1757292642167,-553.23,0.00013698,2]
[384206376,1757292642177,-639.28,0.00013698,2]
[384206378,1757292642186,-2600.53,0.00013698,2]
[384206379,1757292642196,-480.0,0.00013698,2]
[384206382,1757292642205,-779.88,0.00013698,2]
[384206383,1757292642215,-480.0,0.00013698,2]
[384206385,1757292642224,-480.0,0.00013698,2]
[384206387,1757292642233,-553.22,0.00013698,2]
[384206401,1757292642351,-480.0,0.00013698,2]
[384206403,1757292642360,-480.0,0.00013698,2]
[384206405,1757292642369,-480.06,0.00013698,2]
[384206407,1757292642378,-480.0,0.00013698,2]
[384206409,1757292642387,-480.0,0.00013698,2]
[384206411,1757292642396,-570.75,0.00013698,2]
[384206413,1757292642406,-1964.11,0.00013698,2]
[384206415,1757292642415,-328.81,0.00013698,2]
[384206417,1757292642424,-480.0,0.00013698,2]
[384206419,1757292642433,-480.0,0.00013698,2]
[384206421,1757292642443,-815.24,0.00013698,2]
[384206423,1757292642452,-576.79,0.00013698,2]
[384206425,1757292642462,-3762.19,0.00013698,2]
[384206427,1757292642471,-480.0,0.00013698,2]
[384206429,1757292642480,-480.0,0.00013698,2]
[384206431,1757292642489,-702.64,0.00013698,2]
[384206432,1757292642498,-540.08,0.00013698,2]
[384206434,1757292642508,-480.0,0.00013698,2]
[384206436,1757292642517,-480.0,0.00013698,2]
[384206438,1757292642526,-480.0,0.00013698,2]
[384206440,1757292642536,-480.0,0.00013698,2]
[384206442,1757292642545,-480.0,0.00013698,2]
[384206444,1757292642554,-480.0,0.00013698,2]
[384206446,1757292642563,-480.0,0.00013698,2]
[384206448,1757292642572,-676.2,0.00013698,2]
[384206450,1757292642581,-480.0,0.00013698,2]
[384206452,1757292642590,-480.0,0.00013698,2]
[384206454,1757292642599,-480.0,0.00013698,2]
[384206456,1757292642608,-793.5,0.00013698,2]
[384206458,1757292642618,-480.0,0.00013698,2]
[384206460,1757292642627,-480.0,0.00013698,2]
[384206462,1757292642636,-1043.29,0.00013698,2]
[384206464,1757292642645,-157.0,0.00013698,2]
[384206466,1757292642655,-186.0,0.00013698,2]
[384206468,1757292642664,-480.0,0.00013698,2]
[384206470,1757292642673,-621.32,0.00013698,2]
[384206472,1757292642682,-1088.07,0.00013698,2]
[384206474,1757292642692,-1127.3,0.00013698,2]
[384206476,1757292642701,-703.63,0.00013698,2]
[384206478,1757292642712,-480.0,0.00013698,2]
[384206480,1757292642722,-1173.71,0.00013698,2]
[384206482,1757292642731,-495.3,0.00013698,2]
[384206483,1757292642741,-480.0,0.00013698,2]
[384206485,1757292642751,-567.96,0.00013698,2]
[384206487,1757292642760,-480.0,0.00013698,2]
[384206489,1757292642770,-493.73,0.00013698,2]
[384206491,1757292642779,-2251.99,0.00013698,2]
[384206494,1757292642790,-2132.95,0.00013698,2]
[384206496,1757292642799,-576.55,0.00013698,2]
[384206497,1757292642809,-151.0,0.00013698,2]
[384206499,1757292642818,-480.0,0.00013698,2]
[384206501,1757292642827,-483.13792894,0.00013698,2]
[384206503,1757292642836,-1834.47,0.00013698,2]
[384206505,1757292642846,-15176.87,0.00013698,2]
[384206507,1757292642855,-480.0,0.00013698,2]
[384206509,1757292642864,-480.0,0.00013698,2]
[384206511,1757292642874,-480.0,0.00013698,2]
[384206513,1757292642883,-480.0,0.00013698,2]
[384206515,1757292642892,-480.0,0.00013698,2]
[384206517,1757292642902,-480.0,0.00013698,2]
[384206519,1757292642912,-872.79,0.00013698,2]
[384206521,1757292642921,-262.25955695,0.00013698,2]
[384206523,1757292642930,-887.03,0.00013698,2]
[384206525,1757292642940,-417.93098691,0.00013698,2]
[384206527,1757292642950,-480.0,0.00013698,2]
[384206529,1757292642959,-480.0,0.00013698,2]
[384206531,1757292642968,-480.0,0.00013698,2]
[384206533,1757292642978,-480.0,0.00013698,2]
[384206535,1757292642987,-633.9,0.00013698,2]
[384206537,1757292642997,-620.44,0.00013698,2]
[384206539,1757292643007,-151.0,0.00013698,2]
[384206542,1757292643016,-151.0,0.00013698,2]
[384206543,1757292643026,-151.0,0.00013698,2]
[384206545,1757292643035,-480.0,0.00013698,2]
[384206547,1757292643045,-151.0,0.00013698,2]
[384206549,1757292643055,-480.0,0.00013698,2]
[384206551,1757292643068,-482.08901058,0.00013698,2]
[384206553,1757292643081,-1677.5,0.00013698,2]
[384206555,1757292643091,-151.0,0.00013698,2]
[384206558,1757292643101,-245.0,0.00013698,2]
[384206560,1757292643110,-549.97,0.00013698,2]
[384206562,1757292643119,-527.14082948,0.00013698,2]
[384206564,1757292643129,-887.38,0.00013698,2]
[384206566,1757292643139,-480.0,0.00013698,2]
[384206568,1757292643148,-828.42,0.00013698,2]
[384206570,1757292643157,-480.0,0.00013698,2]
[384206572,1757292643167,-532.17,0.00013698,2]
[384206574,1757292643176,-480.0,0.00013698,2]
[384206576,1757292643185,-1106.79,0.00013698,2]
[384206578,1757292643194,-480.0,0.00013698,2]
[384206580,1757292643204,-480.0,0.00013698,2]
[384206582,1757292643213,-480.0,0.00013698,2]
[384206584,1757292643222,-151.0,0.00013698,2]
[384206586,1757292643231,-961.8,0.00013698,2]
[384206588,1757292643240,-480.0,0.00013698,2]
[384206590,1757292643250,-480.0,0.00013698,2]
[384206592,1757292643259,-480.0,0.00013698,2]
[384206594,1757292643268,-719.49,0.00013698,2]
[384206596,1757292643278,-480.0,0.00013698,2]
[384206598,1757292643287,-627.56,0.00013698,2]
[384206600,1757292643296,-551.0,0.00013698,2]
[384206602,1757292643305,-547.45,0.00013698,2]
[384206604,1757292643314,-500.0,0.00013698,2]
[384206606,1757292643323,-500.0,0.00013699,2]
[384206608,1757292643333,-315.427966,0.00013699,2]
[384206610,1757292643342,-568.759846,0.00013699,2]
[384206612,1757292643350,-151.0,0.00013699,2]
[384206614,1757292643359,-151.0,0.00013699,2]
[384206616,1757292643369,-151.0,0.00013699,2]
[384206618,1757292643378,-151.0,0.00013699,2]
[384206620,1757292643388,-230.913752,0.00013699,2]
[384206622,1757292643397,-829.1321837,0.00013699,2]
[384206624,1757292643406,-153.033,0.00013699,2]
[384206626,1757292643415,-648.0,0.000137,2]
[384206628,1757292643424,-3000.0,0.000137,2]
[384206630,1757292643434,-10574.65704845,0.00013793,2]
[384206632,1757292643444,-151.0,0.000138,2]
[384206634,1757292643454,-160.0,0.00013818,2]
[384206636,1757292643463,-409.0,0.00013821,2]
[384206638,1757292643472,-160.0,0.00013821,2]
[384206640,1757292643481,-160.0,0.00013821,2]
[384206641,1757292643491,-417.15472785,0.00013821,2]
[384206644,1757292643501,-233.01044003,0.00013821,2]
[384206646,1757292643510,-846.64878038,0.00013821,2]
[384206648,1757292643520,-203.24090201,0.00013821,2]
[384206649,1757292643529,-217.60587337,0.00013821,2]
[384206651,1757292643538,-530.64473063,0.00013821,2]
[384206653,1757292643548,-168.0,0.00013962,2]
[384206655,1757292643557,-300.0,0.00013971,2]
[384206657,1757292643567,-300.0,0.00013971,2]
[384206659,1757292643576,-300.0,0.00013971,2]
[384206661,1757292643585,-300.0,0.00013971,2]
[384206663,1757292643595,-300.0,0.00013971,2]
[384206665,1757292643604,-300.0,0.00013971,2]
[384206667,1757292643614,-300.0,0.00013971,2]
[384206669,1757292643623,-300.0,0.00013971,2]
[384206671,1757292643633,-300.0,0.00013971,2]
[384206673,1757292643642,-300.0,0.00013971,2]
[384206675,1757292643652,-300.0,0.00013971,2]
[384206677,1757292643662,-300.0,0.00013971,2]
[384206679,1757292643671,-300.0,0.00013971,2]
[384206681,1757292643680,-300.0,0.00013971,2]
[384206683,1757292643690,-300.0,0.00013971,2]
[384206685,1757292643699,-600.0,0.00013971,2]
[384206687,1757292643709,-157.0,0.00013972,2]
[384206689,1757292643718,-296.0,0.00013972,2]
[384206691,1757292643727,-198.0,0.00013972,2]
[384206693,1757292643737,-157.0,0.00013972,2]
[384206695,1757292643747,-883.0,0.00013972,2]
[384206697,1757292643756,-500.0,0.00013972,2]
[384206699,1757292643765,-157.0,0.00013972,2]
[384206701,1757292643774,-3031.197941,0.00013972,2]
[384206703,1757292643784,-480.0,0.00013972,2]
[384206705,1757292643793,-480.0,0.00013972,2]
[384206707,1757292643802,-480.0,0.00013972,2]
[384206709,1757292643811,-480.0,0.00013972,2]
[384206711,1757292643820,-480.0,0.00013972,2]
[384206713,1757292643829,-392.94,0.00013972,2]
[384206715,1757292643839,-480.0,0.00013972,2]
[384206717,1757292643849,-480.0,0.00013972,2]
[384206719,1757292643858,-480.0,0.00013972,2]
[384206721,1757292643867,-480.0,0.00013972,2]
[384206723,1757292643877,-480.0,0.00013972,2]
[384206725,1757292643886,-480.0,0.00013972,2]
[384206727,1757292643895,-306.39,0.00013972,2]
[384206729,1757292643905,-480.0,0.00013972,2]
[384206731,1757292643914,-480.0,0.00013972,2]
[384206733,1757292643924,-480.0,0.00013972,2]
[384206735,1757292643933,-480.0,0.00013972,2]
[384206737,1757292643943,-480.0,0.00013972,2]
[384206739,1757292643952,-480.0,0.00013972,2]
[384206741,1757292643961,-480.0,0.00013972,2]
[384206743,1757292643971,-480.0,0.00013972,2]
[384206745,1757292643980,-263.42,0.00013972,2]
[384206747,1757292643990,-480.0,0.00013972,2]
[384206749,1757292644000,-480.0,0.00013972,2]
[384206751,1757292644009,-480.0,0.00013972,2]
[384206753,1757292644019,-525.56,0.00013972,2]
[384206755,1757292644028,-480.0,0.00013972,2]
[384206757,1757292644037,-480.0,0.00013972,2]
[384206759,1757292644047,-480.0,0.00013972,2]
[384206761,1757292644056,-480.0,0.00013972,2]
[384206763,1757292644069,-480.0,0.00013972,2]
[384206765,1757292644078,-480.0,0.00013972,2]
[384206767,1757292644088,-480.0,0.00013972,2]
[384206769,1757292644097,-480.0,0.00013972,2]
[384206771,1757292644108,-480.0,0.00013972,2]
[384206773,1757292644117,-480.0,0.00013972,2]
[384206775,1757292644127,-480.0,0.00013972,2]
[384206777,1757292644139,-522.91,0.00013972,2]
[384206779,1757292644149,-480.0,0.00013972,2]
[384206781,1757292644159,-480.0,0.00013972,2]
[384206783,1757292644169,-482.09530122,0.00013972,2]
[384206785,1757292644179,-480.0,0.00013972,2]
[384206787,1757292644189,-480.0,0.00013972,2]
[384206789,1757292644199,-492.24183009,0.00013972,2]
[384206791,1757292644209,-480.0,0.00013972,2]
[384206793,1757292644219,-480.0,0.00013972,2]
[384206795,1757292644229,-480.0,0.00013972,2]
[384206797,1757292644239,-657.27639901,0.00013972,2]
[384206818,1757292644436,555.00857008,0.00013595,2]
[384206822,1757292644467,461.6993622,0.00013595,2]
[384206877,1757292644891,-74.13360099,0.00013972,2]
[384206879,1757292644900,-480.0,0.00013972,2]
[384206881,1757292644910,-480.0,0.00013972,2]
[384206883,1757292644919,-451.44989843,0.00013972,2]
[384206885,1757292644929,-28.55010157,0.00013972,2]
[384206886,1757292644938,-480.0,0.00013972,2]
[384206887,1757292644947,-480.0,0.00013972,2]
[384206888,1757292644956,-480.0,0.00013972,2]
[384206889,1757292644965,-482.6912324,0.00013972,2]
[384206890,1757292644975,-82.92817703,0.00013972,2]
[384206971,1757292645865,447.77199239,0.00013553,2]
[384207040,1757292646500,-397.07182297,0.00013972,2]
[384207042,1757292646510,-480.0,0.00013972,2]
[384207044,1757292646519,-480.0,0.00013972,2]
[384207046,1757292646528,-480.0,0.00013972,2]
[384207048,1757292646538,-1000.0,0.00013972,2]
[384207050,1757292646547,-607.13,0.00013972,2]
[384207052,1757292646557,-480.0,0.00013972,2]
[384207054,1757292646566,-480.0,0.00013972,2]
[384207056,1757292646577,-480.0,0.00013972,2]
[384207058,1757292646586,-480.0,0.00013972,2]
[384207060,1757292646595,-503.29,0.00013972,2]
[384207062,1757292646604,-285.02168561,0.00013972,2]
[384207064,1757292646616,-194.97831439,0.00013972,2]
[384207066,1757292646625,-480.0,0.00013972,2]
[384207068,1757292646635,-480.0,0.00013972,2]
[384207070,1757292646644,-480.0,0.00013972,2]
[384207072,1757292646653,-460.11648561,0.00013972,2]
[384207074,1757292646664,-19.88351439,0.00013972,2]
[384207076,1757292646674,-402.86511361,0.00013972,2]
[384214245,1757292723163,300.0,0.00013595,2]
[384219684,1757292782707,300.0,0.00013595,2]
[384220240,1757292794183,2538.53539971,0.00011506,2]
[384220241,1757292794324,61.46460029,0.00011506,2]
[384220242,1757292797812,2600.0,0.00012876,2]
[384220244,1757292843013,300.0,0.00013595,2]
[384220245,1757292902795,300.0,0.00013595,2]
[384220247,1757292962666,300.0,0.00013595,2]
[384220248,1757293024013,300.0,0.00013595,2]
[384220250,1757293082372,300.0,0.00013595,2]
[384220251,1757293143539,300.0,0.00013595,2]
[384220252,1757293202926,300.0,0.00013595,2]
[384220253,1757293202956,1200.0,0.00013595,2]
[384220254,1757293244701,185.73324381,0.00028882,60]
[384220255,1757293259334,666.0,0.00012721,2]
[384220256,1757293263048,300.0,0.00013595,2]
[384220257,1757293276490,-2618.94972153,0.00013596,2]
[384220258,1757293276548,-10000.01,0.00013596,2]
[384220259,1757293276585,-10000.01,0.00013596,2]
[384220261,1757293293616,769.0933119,0.00012698,2]
[384220262,1757293295436,4765.08391226,0.0001346,2]
[384220263,1757293300054,193.69,0.00012329,2]
[384220264,1757293303539,407.24819139,0.0001346,2]
[384220265,1757293306145,-3864.89458445,0.00013596,2]
[384220266,1757293306248,-10000.01,0.00013596,2]
[384220267,1757293476515,9670.7852453,0.00012671,2]
[384220268,1757293495390,329.2247547,0.00012329,2]